Cogmind - Beta 16 @@@ ROGUE MODE // 2025.12.06 @ 14:57:51 Player: lvl5hm Result: Destroyed by WC-RTJ(R) with Subdweller Machine Gun Performance ------------- Evolutions (0) 0 Regions Visited (2) 400 Robots Destroyed (26) 130 Value Destroyed (757) 757 Prototype IDs (0) 0 Alien Tech Used (0) 0 Bonus (0) 0 TOTAL SCORE: 1287 Bonus ------- None Cogmind --------- Core Integrity 0/250 Matter 290/300 Energy 175/200 System Corruption 0% Temperature Cool (18) Movement Treading (260) Ox1 Location -10/Subcaves Parts ------- > --- POWER (1) -------- Subdweller Power Source > --- PROPULSION (2) --- Spiked Treads > --- UTILITY (2) ------ Large Storage Unit Makeshift Light Armor Plating > --- WEAPON (2) ------- Subdweller Beam Cannon > --- INVENTORY (15) --- Subdweller Power Source Subdweller Monowheel Subdweller Monowheel Battle Rifle Subdweller Machine Gun Battle Cannon Slug Cannon Grenade Launcher Makeshift Sword Peak State ------------ > --- POWER ------------ Subdweller Power Source > --- PROPULSION ------- Light Treads Spiked Treads > --- UTILITY ---------- Large Storage Unit Seismic Detector > --- WEAPON ----------- Subdweller Machine Gun Makeshift Sword > --- INVENTORY -------- Subdweller Power Source Subdweller Monowheel Subdweller Monowheel Subdweller Beam Cannon Battle Rifle Battle Cannon Slug Cannon Grenade Launcher [Rating: 14] Favorites ----------- Power Subdweller Power Source Engine Subdweller Power Source Propulsion Light Treads Treads Light Treads Wheel Subdweller Monowheel Utility Seismic Detector Device Seismic Detector Storage Large Storage Unit Protection Scrap Shield Weapon Subdweller Beam Cannon Energy Gun Small Laser Energy Cannon Subdweller Beam Cannon Ballistic Gun Subdweller Machine Gun Launcher Grenade Launcher Slashing Weapon Makeshift Sword Build | -11 -10 -10 ------- Run | Yrd Mat Sub Slots Evolved . | . . . Power . | . . . Propulsion . | . . . Utility . | . . . Weapon . | . . . Parts Attached 27 | 7 3 17 Power 5 | 1 1 3 Engine 5 | 1 1 3 Core . | . . . Reactor . | . . . Propulsion 4 | 2 . 2 Treads 3 | 2 . 1 Leg . | . . . Wheel 1 | . . 1 Hover . | . . . Flight . | . . . Utility 6 | 2 1 3 Device 2 | 1 . 1 Storage 2 | 1 1 . Processor . | . . . Hackware . | . . . Protection 2 | . . 2 Artifact . | . . . Weapon 12 | 2 1 9 Energy Gun 6 | 2 1 3 Energy Cannon 2 | . . 2 Ballistic Gun 2 | . . 2 Ballistic Cannon . | . . . Launcher 1 | . . 1 Special Weapon . | . . . Impact Weapon . | . . . Slashing Weapon 1 | . . 1 Piercing Weapon . | . . . Special Melee Weapon . | . . . Unidentified Prototypes . | . . . Parts Lost 6 | . 1 5 Power . | . . . Propulsion 2 | . . 2 Utility 3 | . 1 2 Weapon 1 | . . 1 Highest Loss Streak 3 | . 1 3 To Critical Strikes . | . . . Average Backups 5 | 1 2 5 Power . | . . . Propulsion 1 | . . 1 Utility 1 | . 1 1 Weapon 2 | . 1 2 Tool/Special . | . . . Unused Backups 7 | . . 7 Power . | . . . Propulsion 1 | . . 1 Utility . | . . . Weapon 6 | . . 6 Tool/Special . | . . . Average Slot Usage (%) 90 | . 98 90 Engine 14 | . 14 14 Treads 26 | . 28 26 Wheel 1 | . . 1 Device 6 | . 12 6 Storage 7 | . 14 6 Protection 6 | . . 6 Energy Gun 7 | . 28 5 Energy Cannon 10 | . . 11 Ballistic Gun 8 | . . 9 Peak Build Rating 14 | 7 7 14 Average Rating 10 | 5 6 11 On Entrance 4 | . 7 6 Avg Prop Armor Cover (%) 10 | . . 10 Naked Turns . | . . . Heaviest Build 38 | 11 28 38 Greatest Support 40 | 40 40 40 Greatest Overweight (x) 1 | . . 1 Average Overweight (x) . | . . . Largest Inventory Capacity 15 | 8 15 15 Average Capacity 9 | 7 10 9 Most Carried 10 | 2 4 10 Average Carried 5 | 1 2 5 Final Capacity 15 | 8 15 15 Final Carried 9 | 2 4 9 Class Distribution -------------------- 62% | Mutant 35% | Subdweller-Mutant Dominant Class ---------------- Mutant | -10/Materials Mutant | -10/Subcaves Resources | -11 -10 -10 ----------- Run | Yrd Mat Sub Matter Collected 730 | 249 36 445 Remotely . | . . . Salvage Created 842 | 58 196 588 Parts 60 | 10 10 40 Haulers Intercepted . | . . . Recyclers Shooed . | . . . Parts Field Recycled . | . . . Retrieved Matter . | . . . Parts Self-Destructed 13 | . . 13 Prevented . | . . . Parts Restored . | . . . Kills | -11 -10 -10 ------- Run | Yrd Mat Sub Combat Hostiles Destroyed 21 | . 3 18 Guns 4 | . 3 1 Cannons 11 | . . 11 AOE 5 | . . 5 Classes Destroyed 8 | 1 2 5 Tunneler 2 | 2 . . Recycler 1 | . 1 . Turret 2 | . . 2 Swarmer 5 | . . 5 Grunt 3 | . 3 . Sentry 1 | . . 1 Artisan 1 | . . 1 Subdweller 12 | . . 12 Best Kill Streak 3 | 1 2 3 Combat Bots Only 3 | . 2 3 Max Kills in Single Turn 3 | 1 1 3 Gunslinging . | . . . Exploded 3 | . . 3 Melee . | . . . Uniques/NPCs Destroyed . | . . . Combat | -11 -10 -10 -------- Run | Yrd Mat Sub Hostile Shots Fired 99 | . 19 80 Missed 32 | . 7 25 Hits 67 | . 12 55 Projectile 67 | . 12 55 AOE 3 | . . 3 Damage Taken 1273 | . 131 1142 Core 254 | . 22 232 Absorbed by Shields . | . . . Core Remaining (%) 100 | 100 . . Volleys Fired 99 | 5 11 83 Largest 2 | 2 2 2 Hottest 110 | 80 80 110 Shots Fired 123 | 10 22 91 Gun 53 | 10 22 21 Cannon 54 | . . 54 Launcher 16 | . . 16 Special . | . . . Kinetic 15 | . . 15 Thermal 92 | 10 22 60 Explosive 16 | . . 16 Electromagnetic . | . . . Robot Hit Streak 17 | 2 9 17 Robot Miss Streak 2 | 1 2 2 Penetration Max . | . . . Secondary Targets . | . . . Shots Hit Robots 69 | 5 17 47 Core Hits 38 | 3 8 27 Critical Kills 1 | . . 1 Critical Parts Destroyed . | . . . Critical Strikes 1 | . . 1 Meltdown 1 | . . 1 Melee Attacks 4 | . . 4 Impact . | . . . Slashing 4 | . . 4 Piercing . | . . . Sneak Attacks 1 | . . 1 Combat Hostiles . | . . . Follow-up Attacks . | . . . Damage Inflicted 1824 | 51 198 1575 Guns 442 | 51 198 193 Cannons 931 | . . 931 Explosions 377 | . . 377 Melee 74 | . . 74 Ramming . | . . . Kinetic 93 | . . 93 Thermal 1280 | 51 198 1031 Explosive 377 | . . 377 Electromagnetic . | . . . Impact . | . . . Slashing 74 | . . 74 Piercing . | . . . Highest Corruption . | . . . Average Corruption . | . . . Corruption Purged . | . . . Corruption Blocked . | . . . Overload Shots . | . . . Overflow Damage . | . . . Projectiles . | . . . Explosions . | . . . Melee . | . . . Knockbacks . | . . . Impact . | . . . Kinetic . | . . . Secondary . | . . . Self-Inflicted Damage 29 | . . 29 Shots 2 | . . 2 Rammed . | . . . Targets Rammed . | . . . Kicked . | . . . Crushed . | . . . Highest Temperature 94 | 54 94 24 Average Temperature 30 | 25 45 14 Received Heat Transfer 285 | . 72 213 Siege Activations . | . . . Martial Activations . | . . . Shielding Activations . | . . . Robots Disrupted . | . . . Combat Hostiles . | . . . Robots Corrupted . | . . . Combat Hostiles . | . . . Parts Fried . | . . . Impact Corruptions . | . . . Robots Melted 1 | . . 1 Combat Hostiles 1 | . . 1 Parts Melted 4 | . . 4 Heat Transferred 1933 | 125 425 1383 Parts Sabotaged . | . . . Parts Stolen . | . . . Parts Stripped . | . . . Power Chain Reactions . | . . . Alert | -11 -10 -10 ------- Run | Yrd Mat Sub Maximum Alert Level . | . . . Low Security (%) 100 | 100 100 . Level 1 . | . . . Level 2 . | . . . Level 3 . | . . . Level 4 . | . . . Level 5 . | . . . High Security . | . . . Max Security . | . . . Peak Influence 50 | 5 50 . Initial . | . . . Average 4 | . 6 . Influence Increases 600 | 10 90 500 Destroy 0b10 Robot/C 220 | . 60 160 Destroy 0b10 Robot/NC 15 | 10 5 . Destroy Leader 30 | . 20 10 Successful Hack 5 | . 5 . Lose Combat Pursuer 330 | . . 330 Influence Decreases 464 | 10 50 404 Entered New Map 20 | . . 20 Time Decay 394 | 10 50 334 Lost Part 50 | . . 50 Squads Dispatched 2 | . 2 . Investigation 1 | . 1 . Extermination . | . . . Reinforcement 1 | . 1 . Assault . | . . . Garrison . | . . . Intercept . | . . . Searches Triggered . | . . . Construction Impeded . | . . . Haulers Reinforced . | . . . Active Scanning Responses . | . . . Cargo Convoy Interrupts . | . . . Stealth | -11 -10 -10 --------- Run | Yrd Mat Sub Distress Signals . | . . . Communications Jammed . | . . . Distress Signals . | . . . Times Spotted 24 | . 3 21 Peak Tracking Total 4 | . 2 4 Tactical Retreats 4 | . . 4 Traps | -11 -10 -10 ------- Run | Yrd Mat Sub Traps Triggered 2 | . 1 1 Indirectly . | . . . Trap Hack Attempts . | . . . Triggered . | . . . Disarmed . | . . . Reprogrammed . | . . . Reused . | . . . Traps Extracted . | . . . Installed . | . . . Triggered . | . . . Most Traps Carried 1 | . . 1 Machines | -11 -10 -10 ---------- Run | Yrd Mat Sub Machines Disabled 3 | . . 3 Max in Single Turn 2 | . . 2 Machines Repaired . | . . . Machines Dismantled . | . . . Machines Sabotaged . | . . . Overloaded Fab Kills . | . . . Hacking | -11 -10 -10 --------- Run | Yrd Mat Sub Machines Accessed 2 | . 2 . Terminals 2 | . 2 . Fabricators . | . . . Repair Stations . | . . . Recycling Units . | . . . Scanalyzers . | . . . Garrison Access . | . . . Total Hacks 4 | . 4 . Successful 2 | . 2 . Failed 2 | . 2 . Catastrophic 1 | . 1 . Database Lockouts . | . . . Manual 4 | . 4 . Terminals 4 | . 4 . Fabricators . | . . . Repair Stations . | . . . Recycling Units . | . . . Scanalyzers . | . . . Garrison Access . | . . . Terminal Hacks 1 | . 1 . Robot Analysis 1 | . 1 . Fabricator Hacks . | . . . Repair Station Hacks . | . . . Recycling Unit Hacks . | . . . Scanalyzer . | . . . Garrison Access Hacks . | . . . Unauthorized Hacks 1 | . 1 . Terminals 1 | . 1 . Botnet 1 | . 1 . Fabricators . | . . . Repair Stations . | . . . Recycling Units . | . . . Scanalyzers . | . . . Garrison Access . | . . . Data Cores Recovered . | . . . Used . | . . . Hacking Detections 2 | . 2 . Full Trace Events . | . . . Feedback Events . | . . . Feedback Blocked . | . . . Robot Schematics Acquired . | . . . Robots Built . | . . . Authchips . | . . . Time . | . . . Total Robot Build Rating . | . . . Part Schematics Acquired . | . . . Parts Built . | . . . Authchips . | . . . Time . | . . . Total Part Build Rating . | . . . Part Studies Acquired . | . . . Parts Repaired . | . . . Time . | . . . Parts Recycled . | . . . Recycled Matter . | . . . Retrieved Matter . | . . . Retrieved Components . | . . . Parts Scanalyzed . | . . . Part Schematics Acquired . | . . . Parts Damaged . | . . . Bothacking | -11 -10 -10 ------------ Run | Yrd Mat Sub Used RIF Installer . | . . . Robots Hacked . | . . . Non-combat . | . . . Combat . | . . . Robot Hacks Applied . | . . . Relay Couplers Released . | . . . Fabnet Peak Effective % . | . . . Robots Rewired . | . . . Allies Hacked . | . . . Hacks Repelled . | . . . Allies | -11 -10 -10 -------- Run | Yrd Mat Sub Total Allies . | . . . Largest Group . | . . . Highest-Rated Group . | . . . Highest-Rated Ally . | . . . Total Orders . | . . . Ally Attacks . | . . . Total Damage . | . . . Kills . | . . . Allies Corrupted . | . . . Allies Melted . | . . . Intel | -11 -10 -10 ------- Run | Yrd Mat Sub Active Infowar (turns) 1775 | 19 273 1483 Seismic 1775 | 19 273 1483 Robot Analysis Total 1 | . 1 . Derelict Logs Recovered 1 | . . 1 Drone Launches . | . . . Drone Recoveries . | . . . Exploration | -11 -10 -10 ------------- Run | Yrd Mat Sub Turns Passed 3709 | 135 306 3268 Spaces Moved 1860 | 67 156 1637 Core 3 | 3 . . Treads 1774 | 64 156 1554 Legs . | . . . Wheels 83 | . . 83 Hover . | . . . Flight . | . . . Fastest Speed 50 | 50 160 110 Average Speed 161 | 155 160 161 Slowest Speed 260 | 160 160 260 Overloaded Moves . | . . . Propulsion Burnouts . | . . . Robots Hopped . | . . . Potential Cave-ins . | . . . Cave-ins Triggered . | . . . Exploration Rate (%) 39 | 4 34 81 Regions Visited 2 Branch Regions 1 Pre-discovered Areas 1 | . . 1 Known Exits Taken . | . . . Unknown Exits Taken 2 | 1 1 . Scrap Searched 4 | . . 4 Spaces Dug 4 | . . 4 Terrain Destroyed 45 | . . 45 Melee . | . . . Projectile 7 | . . 7 AOE 38 | . . 38 Terrain Rammed . | . . . Walls Destroyed . | . . . Machines Disabled . | . . . Actions | -11 -10 -10 --------- Run | Yrd Mat Sub Total 2432 | 85 190 2157 Wait 393 | 4 20 369 Move 1858 | 66 155 1637 Hop . | . . . Pick Up 21 | 3 . 18 Fast Attach 8 | 6 . 2 Attach 6 | 1 . 5 Detach . | . . . Swap 24 | . 3 21 Drop 13 | . 1 12 Fire 99 | 5 11 83 Melee 4 | . . 4 Ram . | . . . Kick . | . . . Crush . | . . . Escape Stasis . | . . . Rewire . | . . . Trap . | . . . Miscellaneous 6 | . . 6 Route ------- -11/Scrapyard -10/Materials (discovered 2 exits: [*Mat] / [*Sub]) -10/Subcaves (discovered 3 exits: [*Mat x2] / [*Rec]) History --------- Turn | Location | Event 16 | -11/Scrapyard | Discovered new exit (range 15) 136 | -11/Scrapyard | Entered Materials 273 | -10/Materials | Discovered new exit (range 5) 300 | -10/Materials | Build established: Mutant 425 | -10/Materials | Discovered new exit (range 6) 442 | -10/Materials | Entered Subcaves 584 | -10/Subcaves | Shifting Twisted Machinery released Sub. Beam Cannon 613 | -10/Subcaves | Learned 2 Materials zone layouts 615 | -10/Subcaves | Shifting Twisted Machinery released Piercing Trap 854 | -10/Subcaves | Discovered new exit (range 15) 897 | -10/Subcaves | Disturbed a concealed Subdweller 1318 | -10/Subcaves | A swath of the cavern ceiling suddenly collapsed 1447 | -10/Subcaves | Build established: Subdweller-Mutant 1664 | -10/Subcaves | Discovered new exit (range 9) 2063 | -10/Subcaves | Shifting Twisted Machinery released Sub. Laser 2067 | -10/Subcaves | Shifting Twisted Machinery released Sub. Power Source 2138 | -10/Subcaves | Learned location of Zion (-6) 2138 | -10/Subcaves | Met a Zionite searching for "candidates" 2507 | -10/Subcaves | A swath of the cavern ceiling suddenly collapsed 2754 | -10/Subcaves | Discovered new exit (range 7) 2936 | -10/Subcaves | Shifting Twisted Machinery released Battle Rifle 2940 | -10/Subcaves | Shifting Twisted Machinery released Slug Cannon 3025 | -10/Subcaves | Build established: Mutant 3588 | -10/Subcaves | Ambushed by Subdweller buried in earth 3589 | -10/Subcaves | Core integrity fell below 50% 3619 | -10/Subcaves | Lost 3 parts (1n1u1w) 3652 | -10/Subcaves | A Subdweller sparked back to life 3702 | -10/Subcaves | Core integrity fell below 20% 3710 | -10/Subcaves | Destroyed by WC-RTJ(R) with Subdweller Machine Gun Last Messages --------------- 03530_ Sub. Power Source shoots sparks and powers down. 03538_ Subatomizers dissect the Lgt. Ion Engine. 03584_ 4M-L26(R): "MADSUB!" 03586_ Seismic Detector destroyed. 03588_ Lgt. Treads destroyed. 03588_ Sub. Machine Gun destroyed. 03589_ 3Z-UDX(R): "THANKSYOU!" 03590_ 4M-L26(R) destroyed. 03592_ 3Z-UDX(R) destroyed. 03597_ Acquired 5 matter. 03607_ Acquired Sub. Machine Gun. 03652_ WC-RTJ(R) creaks and sparks as it begins to move. 03655_ Acquired Mak. Light Armor Plating. 03694_ JO-DV2(R) destroyed. 03707_ T5-5U2(O) collects matter. 03709_ PP-IJG(R) destroyed. Map ----- +----------------------------------------------------+ | ??????????????####??# ## ### "####?### ##""""# | | ??????????##### ##?# ####?##### ##??## #"#### | | ??????????# ### ##??????## #????###???# | | #??????????# #???????# #?????##???#" | | #?????????## ##???????# #??????????## | | #???????### #???####?# ############## | | #??????## ##### ##???# ### # # # # # | | #???#### ############ " | | ##### ## ## ## ##### ### ### | | # ### ## ####???###?####?? | | ## ### #####???????????????? | | "## ##### # ##???????????????????? | | ### ##### ### ######????????????????????? | | ## " #"### ### ##?????????????????????????? | | ##""" " ## ### #??????????????????????????? | | #""" "#### ### #??????????????????????????? | | ##""" ###??## ##??????????????????????????? | | ?#"" ##????# #???????????????????????????? | | ?# " "##??## ##???????????????????????????? | | ?# "" "#### ###??????????????????????????? | | ?# " ## #??????????????????????????? | | ?#### # ### ######?????????????????????? | | ???## ### ##### ## ####??????????????????? | | ???# ### #### = #??????????????????? | | ?### "" #""""### &!& #??????????????????? | | ## "" """"#?# @*%R!#??????????????????? | | # "" """##?#####O& #??????????????????? | | ##### ###" ## ""#??????#&%##?#####????????????? | | ???## *%#?####### ##?????## &#?? " ##???????????? | | ???# #??????# #?????# ##?" #???????????? | | ???# "#??##### #??#### ## ##??????????? | | ##### ""#??# "" "#??# ## " & "" ### #??????? | | # # ##??# ####" ## " ##?????? | | #???# # ### ## ??????? | | #???# " # # # # ##????????? | | ##### ##???#"" " #???????????? | | #???###?????# %& ## #### #??????????? | | ???????????## ! ""######???## #?????????? | | ???????????# &%! " #????????? #?????????? | | ???????????## & " ##??????????##?????????? | | ????????????## # "####??????????????????????? | | ?????????????###########?????????????????????????? | | ?????????????????????????????????????????????????? | | ?????????????????????????????????????????????????? | | ?????????????????????????????????????????????????? | | ?????????????????????????????????????????????????? | | ?????????????????????????????????????????????????? | | ?????????????????????????????????????????????????? | | ?????????????????????????????????????????????????? | | ?????????????????????????????????????????????????? | +----------------------------------------------------+ Best States ------------- Heat Dissipation 25 Energy Generation 15 Energy Capacity 250 Matter Stores 300 Matter Capacity 300 Sight Range 16 Terrain Scan Density 10 Armor Coverage 800 Evasion (%) 40 Recoil Reduction 2 Item Schematics ----------------- None Robot Schematics ------------------ None Fabricated ------------ Nothing Repaired ---------- Nothing Studied --------- None Alien Tech Used ----------------- None Achievements -------------- None Challenges ------------ None Game ------ Seed TractorLauncherWheel Manual? 0 Play Time 00:19:33 Cumulative 270.1 hours Start 2025.12.06 @ 13:51:26 End 2025.12.06 @ 14:57:51 Sessions 2 Manual Loads 0 Difficulty Rogue Special Mode None Game No. 201 Rogue 201 Adventurer 0 Explorer 0 Win Type - Total 12 Types 7/0/2/1/0/0/0/1/0/1 Lore% 71 Gallery% 75 Achievement% 69 Wizard Run 0 Options --------- Layout 2 ASCII 0 Keyboard 1 Movement Arrows Keybinds 0 Fullscreen 1 Font 32/Tamsyn Map View 50x44 Zoom Use 0% Tactical HUD 1 Map Filters NONE Filters NONE Steam 1 RUN: b989b436-3074-4bd7-8b10-a92ee0556a36